Cogmind - Beta 16 @@@ ROGUE MODE // 2025.12.28 @ 17:26:57 // Winter2022/Polymind Player: Compilatron Result: Destroyed by S-10 Pest with Light Assault Rifle Performance ------------- Evolutions (2) 1000 Regions Visited (7) 1400 Robots Destroyed (33) 165 Value Destroyed (952) 952 Prototype IDs (23) 460 Alien Tech Used (0) 0 Bonus (4345) 4345 TOTAL SCORE: 7732 Bonus ------- Polymind Skill 3240 Pacifist 200 High Alert Combat Kills 41 Follower Combat Kills 33 Entered Garrisons 200 Used RIF Installer 500 Aligned with FarCom 300 Friendly Fire -169 Cogmind --------- Core Integrity 0/550 Matter 0/0 Energy 49/50 System Corruption 0% Temperature Cool (0) Movement Core (100) Ox1 Location -8/Garrison Parts ------- > --- POWER (1) -------- (None) > --- PROPULSION (2) --- (None) > --- UTILITY (1) ------ Improved Heat Sink > --- WEAPON (1) ------- Particle Gun > --- INVENTORY (1) ---- (None) Peak State ------------ > --- POWER ------------ Light Angular Momentum Engine > --- PROPULSION ------- Carbon-fiber Leg Carbon-fiber Leg > --- UTILITY ---------- Improved Heat Sink Improved Heat Sink > --- WEAPON ----------- Beamcaster > --- INVENTORY -------- (None) [Rating: 22] Favorites ----------- Power Improved Ion Engine Engine Improved Ion Engine Power Core Light Nuclear Core Propulsion Light Treads Treads Light Treads Leg Carbon-fiber Leg Hover Unit Hover Unit Utility Heat Sink Device Heat Sink Hackware Hacking Suite Protection Light Armor Plating Weapon Beam Rifle Energy Gun Beam Rifle Ballistic Gun Heavy Assault Rifle Special Melee Weapon Datajack Build | -11 -10 -9 -9 -9 -8 -8 -8 ------- Run | Yrd Mat Mat Min Exi Min Mat Gar Slots Evolved . | . . . . . . . . Power . | . . . . . . . . Propulsion . | . . . . . . . . Utility . | . . . . . . . . Weapon . | . . . . . . . . Parts Attached . | . . . . . . . . Power . | . . . . . . . . Engine . | . . . . . . . . Core . | . . . . . . . . Reactor . | . . . . . . . . Propulsion . | . . . . . . . . Treads . | . . . . . . . . Leg . | . . . . . . . . Wheel . | . . . . . . . . Hover . | . . . . . . . . Flight . | . . . . . . . . Utility . | . . . . . . . . Device . | . . . . . . . . Storage . | . . . . . . . . Processor . | . . . . . . . . Hackware . | . . . . . . . . Protection . | . . . . . . . . Artifact . | . . . . . . . . Weapon . | . . . . . . . . Energy Gun . | . . . . . . . . Energy Cannon . | . . . . . . . . Ballistic Gun . | . . . . . . . . Ballistic Cannon . | . . . . . . . . Launcher . | . . . . . . . . Special Weapon . | . . . . . . . . Impact Weapon . | . . . . . . . . Slashing Weapon . | . . . . . . . . Piercing Weapon . | . . . . . . . . Special Melee Weapon . | . . . . . . . . Unidentified Prototypes . | . . . . . . . . Parts Lost 13 | . . . . . 1 . 12 Power 3 | . . . . . . . 3 Propulsion 5 | . . . . . . . 5 Utility 1 | . . . . . . . 1 Weapon 4 | . . . . . 1 . 3 Highest Loss Streak 3 | . . . . . 1 . 3 To Critical Strikes . | . . . . . . . . Average Backups . | . . . . . 1 . . Power . | . . . . . . . . Propulsion . | . . . . . . . . Utility . | . . . . . . . . Weapon . | . . . . . 1 . . Tool/Special . | . . . . . . . . Unused Backups . | . . . . . . . . Power . | . . . . . . . . Propulsion . | . . . . . . . . Utility . | . . . . . . . . Weapon . | . . . . . . . . Tool/Special . | . . . . . . . . Average Slot Usage (%) 93 | . 20 98 100 100 96 96 89 Engine 9 | . 4 12 12 15 16 3 5 Core 4 | . . . . . . 16 9 Treads 10 | . . 21 25 4 . . 9 Leg 16 | . . . . 27 33 38 18 Hover 1 | . 8 4 . . . . . Device 24 | . . 21 25 31 33 22 21 Protection 5 | . . 10 12 2 . . 4 Energy Gun 13 | . . 10 12 15 13 16 15 Ballistic Gun 5 | . . 10 12 2 . . 5 Peak Build Rating 22 | . 7 11 11 22 22 17 11 Average Rating 12 | . . 10 11 20 20 11 9 On Entrance 9 | . . 7 11 11 22 17 10 Avg Prop Armor Cover (%) . | . . . . . . . . Naked Turns 118 | . 38 13 . 4 . 1 62 Heaviest Build 18 | . 4 18 18 18 16 11 18 Greatest Support 40 | 3 12 40 40 40 30 30 40 Greatest Overweight (x) 4 | . . . . . . . 4 Average Overweight (x) . | . . . . . . . . Largest Inventory Capacity 1 | . 1 1 1 1 1 1 1 Average Capacity . | . . . 1 . 1 . . Most Carried 1 | . . . . 1 1 1 . Average Carried . | . . . . . 1 . . Final Capacity 1 | . 1 1 1 1 1 1 1 Final Carried 1 | . . . . 1 1 . . Class Distribution -------------------- 47% | Sentry 46% | Grunt 3% | Cogmind Dominant Class ---------------- Cogmind | -10/Materials Sentry | -9/Materials Sentry | -9/Mines Grunt | -9/Exiles Grunt | -8/Mines Grunt | -8/Materials Sentry | -8/Garrison Resources | -11 -10 -9 -9 -9 -8 -8 -8 ----------- Run | Yrd Mat Mat Min Exi Min Mat Gar Matter Collected 122 | . . . 18 . . . 104 Remotely . | . . . . . . . . Salvage Created 688 | . . . 71 . 116 . 501 Parts 50 | . . . 3 . 14 . 33 Haulers Intercepted . | . . . . . . . . Recyclers Shooed . | . . . . . . . . Parts Field Recycled . | . . . . . . . . Retrieved Matter . | . . . . . . . . Parts Self-Destructed . | . . . . . . . . Prevented . | . . . . . . . . Parts Restored . | . . . . . . . . Kills | -11 -10 -9 -9 -9 -8 -8 -8 ------- Run | Yrd Mat Mat Min Exi Min Mat Gar Combat Hostiles Destroyed 32 | . . . 2 . 9 . 21 Melee 1 | . . . . . 1 . . Guns 30 | . . . 1 . 8 . 21 Classes Destroyed 4 | . . . 2 . 1 . 1 Swarmer 20 | . . . . . 9 . 11 Grunt 10 | . . . 1 . . . 9 Duelist 1 | . . . 1 . . . . Sentry 1 | . . . . . . . 1 Thug 1 | . . . . . . 1 . Best Kill Streak 5 | . . . 2 . 4 . 5 Combat Bots Only 5 | . . . 2 . 4 . 5 Max Kills in Single Turn 2 | . . . 1 . 1 1 2 Gunslinging 1 | . . . . . . . 1 Exploded . | . . . . . . . . Melee 1 | . . . . . 1 . . Uniques/NPCs Destroyed . | . . . . . . . . Combat | -11 -10 -9 -9 -9 -8 -8 -8 -------- Run | Yrd Mat Mat Min Exi Min Mat Gar Hostile Shots Fired 293 | . 3 14 . . 75 1 200 Missed 69 | . 1 3 . . 23 . 42 Hits 224 | . 2 11 . . 52 1 158 Projectile 224 | . 2 11 . . 52 1 158 Critical Strikes 5 | . . . . . 1 . 4 Damage Taken 2490 | . 13 151 . . 514 33 1779 Core 737 | . 13 15 . . 156 17 536 Absorbed by Shields 9 | . . . . . . . 9 Core Remaining (%) 83 | 100 94 . . . 57 . . Volleys Fired 122 | . . . 4 . 23 5 90 Largest 2 | . . . 2 . 1 1 2 Hottest 79 | . . . 79 . 75 65 79 Shots Fired 166 | . . . 8 . 23 5 130 Gun 166 | . . . 8 . 23 5 130 Cannon . | . . . . . . . . Launcher . | . . . . . . . . Special . | . . . . . . . . Kinetic 44 | . . . 4 . . . 40 Thermal 122 | . . . 4 . 23 5 90 Explosive . | . . . . . . . . Electromagnetic . | . . . . . . . . Robot Hit Streak 12 | . . . 3 . 3 4 12 Robot Miss Streak 6 | . . . 2 . 2 2 6 Penetration Max . | . . . . . . . . Secondary Targets 4 | . . . 1 . . . 3 Max Gunslinging Chain 1 | . . . 1 . . . 1 Shots Hit Robots 98 | . . . 4 . 10 4 80 Core Hits 51 | . . . 2 . 14 3 32 Critical Kills . | . . . . . . . . Critical Parts Destroyed . | . . . . . . . . Critical Strikes 6 | . . . 2 . 1 . 3 Burn 6 | . . . 2 . 1 . 3 Melee Attacks . | . . . . . . . . Impact . | . . . . . . . . Slashing . | . . . . . . . . Piercing . | . . . . . . . . Sneak Attacks . | . . . . . . . . Combat Hostiles . | . . . . . . . . Follow-up Attacks . | . . . . . . . . Damage Inflicted 1682 | . . . 62 . 276 69 1275 Guns 1642 | . . . 62 . 236 69 1275 Cannons . | . . . . . . . . Explosions . | . . . . . . . . Melee . | . . . . . . . . Ramming 40 | . . . . . 40 . . Kinetic 457 | . . . 18 . . . 439 Thermal 1185 | . . . 44 . 236 69 836 Explosive . | . . . . . . . . Electromagnetic . | . . . . . . . . Impact . | . . . . . . . . Slashing . | . . . . . . . . Piercing . | . . . . . . . . Highest Corruption . | . . . . . . . . Average Corruption . | . . . . . . . . Corruption Purged . | . . . . . . . . Corruption Blocked . | . . . . . . . . Overload Shots . | . . . . . . . . Overflow Damage . | . . . . . . . . Projectiles . | . . . . . . . . Explosions . | . . . . . . . . Melee . | . . . . . . . . Knockbacks . | . . . . . . . . Impact . | . . . . . . . . Kinetic . | . . . . . . . . Secondary . | . . . . . . . . Self-Inflicted Damage . | . . . . . . . . Shots . | . . . . . . . . Rammed . | . . . . . . . . Targets Rammed 19 | . . . . . 19 . . Kicked 19 | . . . . . 19 . . Crushed . | . . . . . . . . Highest Temperature 82 | . . 2 . . . 8 82 Average Temperature 32 | . . 2 . . . 5 34 Received Heat Transfer 708 | . . 75 . . . 18 615 Siege Activations . | . . . . . . . . Martial Activations . | . . . . . . . . Shielding Activations . | . . . . . . . . Robots Disrupted . | . . . . . . . . Combat Hostiles . | . . . . . . . . Robots Corrupted . | . . . . . . . . Combat Hostiles . | . . . . . . . . Parts Fried . | . . . . . . . . Impact Corruptions . | . . . . . . . . Robots Melted 1 | . . . 1 . . . . Combat Hostiles 1 | . . . 1 . . . . Parts Melted 4 | . . . . . 2 . 2 Heat Transferred 3071 | . . . 259 . 481 148 2183 Parts Sabotaged . | . . . . . . . . Parts Stolen . | . . . . . . . . Parts Stripped . | . . . . . . . . Power Chain Reactions . | . . . . . . . . Alert | -11 -10 -9 -9 -9 -8 -8 -8 ------- Run | Yrd Mat Mat Min Exi Min Mat Gar Maximum Alert Level 2 | . . . . . . . 2 Low Security (%) 68 | . 100 100 100 . 100 100 33 Level 1 7 | . . . . . . . 16 Level 2 23 | . . . . . . . 50 Level 3 . | . . . . . . . . Level 4 . | . . . . . . . . Level 5 . | . . . . . . . . High Security . | . . . . . . . . Max Security . | . . . . . . . . Peak Influence 645 | . . 45 43 . 70 43 645 Initial 9 | . . . . . . 9 . Average 151 | . . 2 11 . 30 14 310 Influence Increases 1160 | . . 53 53 21 210 44 779 Destroy 0b10 Robot/C 660 | . . . 40 20 180 . 420 Destroy Leader 50 | . . . 10 . 30 . 10 Allied During Kill 4 | . . . 3 1 . . . Successful Hack 36 | . . 8 . . . 14 14 Select Force Hacks 30 | . . . . . . 30 . Anti-Garrison Action 200 | . . . . . . . 200 Partial Spotted 45 | . . 45 . . . . . Lose Combat Pursuer 135 | . . . . . . . 135 Influence Decreases 515 | . . 53 53 21 186 68 134 Entered New Map 15 | . . . . . . 15 . Time Decay 332 | . . 39 53 18 176 46 . Lost Part 130 | . . . . . 10 . 120 Purge Threat 8 | . . 8 . . . . . Miscellaneous 30 | . . 6 . 3 . 7 14 Squads Dispatched 3 | . 1 1 . . . 1 . Investigation 1 | . . . . . . 1 . Extermination . | . . . . . . . . Reinforcement 2 | . 1 1 . . . . . Assault . | . . . . . . . . Garrison . | . . . . . . . . Intercept . | . . . . . . . . Searches Triggered . | . . . . . . . . Construction Impeded . | . . . . . . . . Haulers Reinforced . | . . . . . . . . Active Scanning Responses . | . . . . . . . . Cargo Convoy Interrupts . | . . . . . . . . Stealth | -11 -10 -9 -9 -9 -8 -8 -8 --------- Run | Yrd Mat Mat Min Exi Min Mat Gar Distress Signals 3 | . 1 2 . . . . . Communications Jammed . | . . . . . . . . Distress Signals . | . . . . . . . . Times Spotted 60 | . 4 11 1 . 12 1 31 Peak Tracking Total 5 | . 4 5 1 . 4 2 5 Tactical Retreats 5 | . . . . . . . 5 Traps | -11 -10 -9 -9 -9 -8 -8 -8 ------- Run | Yrd Mat Mat Min Exi Min Mat Gar Traps Triggered 3 | . . . . . . . 3 Indirectly . | . . . . . . . . Trap Hack Attempts . | . . . . . . . . Triggered . | . . . . . . . . Disarmed . | . . . . . . . . Reprogrammed . | . . . . . . . . Reused . | . . . . . . . . Traps Extracted . | . . . . . . . . Installed . | . . . . . . . . Triggered . | . . . . . . . . Machines | -11 -10 -9 -9 -9 -8 -8 -8 ---------- Run | Yrd Mat Mat Min Exi Min Mat Gar Machines Disabled 1 | . . . . . . . 1 Max in Single Turn 1 | . . . . . . . 1 Garrison Relay 1 | . . . . . . . 1 Machines Repaired . | . . . . . . . . Machines Dismantled . | . . . . . . . . Machines Sabotaged . | . . . . . . . . Overloaded Fab Kills . | . . . . . . . . Hacking | -11 -10 -9 -9 -9 -8 -8 -8 --------- Run | Yrd Mat Mat Min Exi Min Mat Gar Machines Accessed 11 | . . 4 . 1 . 3 3 Terminals 7 | . . 3 . . . 1 3 Fabricators . | . . . . . . . . Repair Stations 1 | . . 1 . . . . . Recycling Units . | . . . . . . . . Scanalyzers 1 | . . . . . . 1 . Garrison Access 1 | . . . . . . 1 . Total Hacks 21 | . . 11 . 1 . 4 5 Successful 12 | . . 6 . 1 . 3 2 Failed 9 | . . 5 . . . 1 3 Catastrophic . | . . . . . . . . Database Lockouts . | . . . . . . . . Manual 12 | . . 8 . 1 . 3 . Terminals 14 | . . 7 . . . 2 5 Fabricators . | . . . . . . . . Repair Stations 4 | . . 4 . . . . . Recycling Units . | . . . . . . . . Scanalyzers 1 | . . . . . . 1 . Garrison Access 1 | . . . . . . 1 . Terminal Hacks 5 | . . 2 . 1 . . 2 Unreport Threat 1 | . . 1 . . . . . Zone Layout 1 | . . 1 . . . . . Garrison Registry 1 | . . . . . . . 1 Patrol Navigation 1 | . . . . . . . 1 Proto ID Catalog 1 | . . . . 1 . . . Fabricator Hacks . | . . . . . . . . Repair Station Hacks . | . . . . . . . . Recycling Unit Hacks . | . . . . . . . . Scanalyzer . | . . . . . . . . Garrison Access Hacks 1 | . . . . . . 1 . Unlock Access 1 | . . . . . . 1 . Unauthorized Hacks 5 | . . 3 . . . 2 . Terminals 3 | . . 2 . . . 1 . Botnet 3 | . . 2 . . . 1 . Fabricators . | . . . . . . . . Repair Stations 1 | . . 1 . . . . . Mechanics 1 | . . 1 . . . . . Recycling Units . | . . . . . . . . Scanalyzers 1 | . . . . . . 1 . Extract 1 | . . . . . . 1 . Garrison Access . | . . . . . . . . Data Cores Recovered . | . . . . . . . . Used . | . . . . . . . . Hacking Detections 7 | . . 4 . . . 1 2 Full Trace Events 1 | . . . . . . . 1 Feedback Events . | . . . . . . . . Feedback Blocked . | . . . . . . . . Robot Schematics Acquired . | . . . . . . . . Robots Built . | . . . . . . . . Authchips . | . . . . . . . . Time . | . . . . . . . . Total Robot Build Rating . | . . . . . . . . Part Schematics Acquired 2 | . . . . . . 2 . Parts Built . | . . . . . . . . Authchips . | . . . . . . . . Time . | . . . . . . . . Total Part Build Rating . | . . . . . . . . Part Studies Acquired . | . . . . . . . . Parts Repaired . | . . . . . . . . Time . | . . . . . . . . Parts Recycled . | . . . . . . . . Recycled Matter . | . . . . . . . . Retrieved Matter . | . . . . . . . . Retrieved Components . | . . . . . . . . Parts Scanalyzed . | . . . . . . . . Part Schematics Acquired . | . . . . . . . . Parts Damaged . | . . . . . . . . Bothacking | -11 -10 -9 -9 -9 -8 -8 -8 ------------ Run | Yrd Mat Mat Min Exi Min Mat Gar Used RIF Installer 1 | . . . . . . . 1 Robots Hacked 7 | . 1 2 . . . 1 3 Non-combat 2 | . 1 1 . . . . . Combat 5 | . . 1 . . . 1 3 Robot Hacks Applied 8 | . 1 2 . . . 2 3 find_terminals 2 | . 1 1 . . . . . find_shortcuts 5 | . . 1 . . . 1 3 find_garrison 1 | . . . . . . 1 . Relay Couplers Released 5 | . . . . . . . 5 Machine Destruction 5 | . . . . . . . 5 Fabnet Peak Effective % . | . . . . . . . . Robots Rewired . | . . . . . . . . Allies Hacked . | . . . . . . . . Hacks Repelled . | . . . . . . . . Allies | -11 -10 -9 -9 -9 -8 -8 -8 -------- Run | Yrd Mat Mat Min Exi Min Mat Gar Total Allies 2 | . . . 1 . . 1 . Largest Group 1 | . . . 1 1 . 1 . Highest-Rated Group 31 | . . . 31 31 . 26 . Highest-Rated Ally 31 | . . . 31 31 . 26 . Total Orders . | . . . . . . . . Ally Attacks 6 | . . . 5 1 . . . Total Damage 103 | . . . 82 21 . . . Kills 1 | . . . . 1 . . . Allies Corrupted . | . . . . . . . . Allies Melted . | . . . . . . . . Intel | -11 -10 -9 -9 -9 -8 -8 -8 ------- Run | Yrd Mat Mat Min Exi Min Mat Gar Active Infowar (turns) . | . . . . . . . . Robot Analysis Total 4 | . 1 1 . 1 . 1 . Derelict Logs Recovered . | . . . . . . . . Drone Launches . | . . . . . . . . Drone Recoveries . | . . . . . . . . Exploration | -11 -10 -9 -9 -9 -8 -8 -8 ------------- Run | Yrd Mat Mat Min Exi Min Mat Gar Turns Passed 3376 | . 40 774 200 389 435 142 1396 Spaces Moved 1944 | 1 80 215 118 316 275 111 828 Core 206 | 1 75 5 . 7 . 1 117 Treads 485 | . . 70 118 35 . . 262 Legs 1108 | . . . . 274 275 110 449 Wheels . | . . . . . . . . Hover 145 | . 5 140 . . . . . Flight . | . . . . . . . . Fastest Speed 50 | 50 50 50 160 50 120 50 50 Average Speed 123 | 50 50 89 160 122 120 119 135 Slowest Speed 250 | 50 56 160 160 160 120 120 250 Overloaded Moves . | . . . . . . . . Propulsion Burnouts . | . . . . . . . . Robots Hopped . | . . . . . . . . Potential Cave-ins . | . . . . . . . . Cave-ins Triggered . | . . . . . . . . Exploration Rate (%) 34 | 2 27 26 29 62 58 14 59 Regions Visited 7 Branch Regions 3 Pre-discovered Areas . | . . . . . . . . Known Exits Taken 1 | . . . . . . 1 . Unknown Exits Taken 6 | 1 1 1 1 1 1 . . Scrap Searched 1 | . . . 1 . . . . Spaces Dug . | . . . . . . . . Terrain Destroyed . | . . . . . . . . Melee . | . . . . . . . . Projectile . | . . . . . . . . AOE . | . . . . . . . . Terrain Rammed . | . . . . . . . . Walls Destroyed . | . . . . . . . . Machines Disabled . | . . . . . . . . Actions | -11 -10 -9 -9 -9 -8 -8 -8 --------- Run | Yrd Mat Mat Min Exi Min Mat Gar Total 2757 | . 79 796 121 316 353 115 977 Wait 654 | . . 581 . . 37 . 36 Move 1930 | . 79 214 117 315 274 110 821 Hop . | . . . . . . . . Pick Up 1 | . . . . 1 . . . Fast Attach . | . . . . . . . . Attach . | . . . . . . . . Detach . | . . . . . . . . Swap . | . . . . . . . . Drop . | . . . . . . . . Fire 122 | . . . 4 . 23 5 90 Melee . | . . . . . . . . Ram . | . . . . . . . . Kick 19 | . . . . . 19 . . Crush . | . . . . . . . . Escape Stasis 29 | . . . . . . . 29 Rewire 2 | . . 1 . . . . 1 Trap . | . . . . . . . . Miscellaneous . | . . . . . . . . Route ------- -11/Scrapyard -10/Materials -9/Materials -9/Mines (discovered 2 exits: *Exi / [*Zio]) -9/Exiles (discovered 2 exits: [*Min x2]) -8/Mines -8/Materials (discovered 2 exits: [*Sto] / Gar) -8/Garrison (discovered 3 exits: [*Mat x3]) History --------- Turn | Location | Event 1 | -11/Scrapyard | Discovered new exit (range 0) 1 | -11/Scrapyard | Entered Materials 2 | -10/Materials | Met a group of wandering Federalists 33 | -10/Materials | Discovered new exit (range 12) 41 | -10/Materials | Entered another Materials area 799 | -9/Materials | Discovered new exit (range 11) 815 | -9/Materials | Entered Mines 818 | -9/Mines | Received a Mining Laser from a helpful Derelict 918 | -9/Mines | A Derelict revealed a hidden shortcut to a safe place 1007 | -9/Mines | Deemed a non-threat by the Exiles lab entrance 1007 | -9/Mines | Discovered new exit (range 5) 1015 | -9/Mines | Entered Exiles 1015 | -9/Exiles | Accompanied by 1 ally 1054 | -9/Exiles | Met 8R-AWN 1099 | -9/Exiles | Met EX-HEX 1126 | -9/Exiles | Discovered new exit (range 15) 1221 | -9/Exiles | Met EX-BIN 1244 | -9/Exiles | Aligned with FarCom system 1245 | -9/Exiles | Given EX-Vault access code 1279 | -9/Exiles | Opened EX-Vault 1308 | -9/Exiles | Warned to stay clear of 0b10 Research branches 1348 | -9/Exiles | Met EX-DEC 1392 | -9/Exiles | Discovered new exit (range 11) 1404 | -9/Exiles | Entered Mines 1831 | -8/Mines | Discovered new exit (range 9) 1839 | -8/Mines | Entered Materials 1839 | -8/Materials | Discovered new exit (range 7) 1924 | -8/Materials | Identified exit to Garrison 1981 | -8/Materials | Entered Garrison 2035 | -8/Garrison | Triggered checkpoint 2073 | -8/Garrison | Triggered checkpoint 2118 | -8/Garrison | Discovered new exit (range 10) 2151 | -8/Garrison | Triggered checkpoint 2182 | -8/Garrison | Attempted to access garrison exit controls, blocked by remote lockdown 2295 | -8/Garrison | Triggered checkpoint 2297 | -8/Garrison | Garrison Relay disabled 2470 | -8/Garrison | Lost 3 parts (1p1n1w) 2635 | -8/Garrison | Triggered checkpoint 2650 | -8/Garrison | Core integrity fell below 50% 2870 | -8/Garrison | Discovered new exit (range 13) 2889 | -8/Garrison | Attempted to access garrison exit controls, blocked by remote lockdown 2931 | -8/Garrison | Triggered checkpoint 2996 | -8/Garrison | Lost 3 parts (2n1u) 3080 | -8/Garrison | Installed Relay Interface Framework 3147 | -8/Garrison | Lost 3 parts (1p2w) 3210 | -8/Garrison | Discovered new exit (range 53) 3210 | -8/Garrison | Discovered new exit (range 66) 3210 | -8/Garrison | Discovered new exit (range 9) 3321 | -8/Garrison | Triggered checkpoint 3339 | -8/Garrison | Core integrity fell below 20% 3377 | -8/Garrison | Destroyed by S-10 Pest with Light Assault Rifle Last Messages --------------- Retrieving Garrison registry... Downloaded map data. Downloaded component registry. Downloaded security status. 03274_ Released control of G-47 Trooper. 03274_ Attempting to rewire G-47 Trooper. 03274_ G-47 Trooper is rebooting, system inaccessible. 03275_ G-47 Trooper reactivates. 03275_ Took control of G-47 Trooper. 03321_ Beams of light sweep through the air. An alarm sounds. 03334_ S-10 Pest destroyed. 03336_ Aluminum Leg destroyed. 03336_ S-10 Pest destroyed. 03340_ S-10 Pest suffers critical hit (Destroy). 03340_ S-10 Pest destroyed. 03357_ Lgt. Nuclear Core destroyed. 03364_ Aluminum Leg destroyed. 03374_ S-10 Pest destroyed. Map ----- +----------------------------------------------------+ | ??????????????????????????????????#"" ""#???? | | ??????????????????????????????????#" = "#???? | | ??????????????????????????????????#""" ["""#???? | | ??????????????????????????????????## "#???? | | ???????????????????????????????????# # ""#???? | | ??????????????????????????????????## " = ""#???? | | ??????????????????????????????????# " "#???? | | ??????????????????????????????????## # ="""#???? | | ???????????????????????????????????### ####???? | | ?????????????????????????????????????#### #??????? | | ?????????????????????????????????######## #??????? | | ?????????????????????????????????# ## #??????? | | ?????????????????????????????????# ## #??????? | | ?????????????????????????????????# < ## #????### | | ?????????????????????????????????# ## #????#"" | | ?????????????????????????????????# ## #????#" | | ######???????????????????????????## ### #????#" | | #????????????????????????????# #?# #????#" | | #???????????????????????###### ### #????#" | | ### #???????????????????????# + + #????## | | ## #???????????????????????# #### ### #?????## | | # #???????????????????????# #??# #?# #?????## | | #???????????????????????# #??# #?# #????##] | | # #????????????????########+#### ### ####?#! | | ### #????????????????# s ^ + + #?#! | | ### ###########??????# g %[ ^ + + #?### | | ^ #??????# s#####+### ##### ####???# | | ### ^ #??????# #???# #?#^#???#++##?????# | | ??# ######## #??????# #???# #?# #???# #?????# | | ### ####???# #??????# #???# #?# #####"""####### | | += + ##### #???#### =##### #?# | | ###%[## + #???# +[%+ #?###+############ | | ??#* ## ##### #???# ##%*##### #??#Y #?????????#"" | | ??# ## #???# #####+## #???# #??## #?????????### | | ??# ## #???# ## ##%%#???# #???# #???????????? | | ??# ## #??## ## ##=*##??# #???# #???????????? | | ### ##+#### #### ##### ######??????? | | + + #??????? | | ### #### #####Y## #??????? | | ??########## [ ## ## #??# #???########??????? | | ?????????###= ## ## #### #?????????????????? | | ?????????# [ "g+ #?????????????????? | | ?????????# % "g####???????????????### | | ?????????# " ####?????????????###!! | | #????????# " + #?????????????# | | #????????### ## * ## #### #?????????????# #!! | | ############ ## [% ## ####+############### ### | | ^^ = | | ^^ ##########"""## | | # ######## ####+## #????????# #? | +----------------------------------------------------+ Best States ------------- Heat Dissipation 51 Energy Generation 23 Energy Capacity 215 Matter Stores 100 Matter Capacity 100 Sight Range 16 Terrain Scan Density 10 Armor Coverage 150 Resistance: EX 50 Resistance: I 25 Evasion (%) 55 Recoil Reduction 2 Offensive Hacking 10 Item Schematics ----------------- Heat Sink | -8/Materials | Extracted Trap Scanner | -8/Materials | Extracted Robot Schematics ------------------ None Fabricated ------------ Nothing Repaired ---------- Nothing Studied --------- None Alien Tech Used ----------------- None Achievements -------------- None Challenges ------------ None Polymind | -11 -10 -9 -9 -9 -8 -8 -8 ---------- Run | Yrd Mat Mat Min Exi Min Mat Gar Hosts 8 | . 1 2 . 1 . 1 3 Combat Hostiles 5 | . . 1 . . . 1 3 Allies 1 | . . . . 1 . . . Unique Host Classes 3 | . 1 1 . 1 . . . Average Host Suspicion 68 | . 1 60 74 . 83 16 91 Unsuspicious Activity 706 | . 2 602 . 7 . 65 30 Returns to Shadow 1 | . . 1 . . . . . Fuzzy Dispatches . | . . . . . . . . Protomatter Created 183 | . 8 . 11 . 16 19 129 Used 160 | . 5 28 . 14 . 30 83 Decayed 4 | . . . . . . . 4 Highest Spend 30 | . 5 23 . 14 . 30 30 Top 5 Hosts by Kills: Y-45 Defender (-8/Garrison: 15) HZ-11N(g) (-9/Exiles: 9) G-47 Trooper (-8/Garrison: 4) Y-45 Defender (-9/Materials: 2) G-47 Trooper (-8/Materials: 2) Game ------ Seed SmartbombAlertMonowheel Manual? 0 Play Time 00:18:47 Cumulative 79.4 hours Start 2025.12.28 @ 17:08:48 End 2025.12.28 @ 17:26:57 Sessions 1 Manual Loads 0 Difficulty Rogue Special Mode Winter2022/Polymind Game No. 123 Rogue 99 Adventurer 20 Explorer 4 Win Type - Total 1 Types 0/0/0/1/0/0/0/0/0/0 Lore% 46 Gallery% 42 Achievement% 32 Wizard Run 0 Options --------- Layout 1 ASCII 0 Keyboard 0 Movement Numpad Keybinds 0 Fullscreen 2 Font 24/Smallcaps Map View 50x35 Zoom Use 0% Tactical HUD 1 Map Filters NONE Filters NONE Steam 1 RUN: a91c417f-7e6f-4615-b03d-2b8849293eb6